fUSD/lending_fUSD_20250507
["ID","MTS","AMOUNT","RATE_DAILY","PERIOD"]
[360193597,1746614827455,-151.0,0.00019529,2]
[360193598,1746614827480,-151.0,0.00019529,2]
[360193599,1746614827506,-151.0,0.00019529,2]
[360193600,1746614827534,-151.0,0.00019529,2]
[360193601,1746614827560,-279.220533,0.00019529,2]
[360193602,1746614827587,-789.569667,0.00019529,2]
[360193603,1746614827615,-789.569667,0.00019529,2]
[360193604,1746614827643,-789.569667,0.00019529,2]
[360193605,1746614827671,-789.569667,0.00019529,2]
[360193606,1746614827699,-789.569667,0.00019529,2]
[360193607,1746614827727,-789.56967297,0.00019529,2]
[360193608,1746614827753,-151.0,0.00019529,2]
[360193609,1746614827780,-151.0,0.00019529,2]
[360193610,1746614827806,-151.0,0.00019529,2]
[360193611,1746614827835,-151.0,0.00019529,2]
[360193612,1746614827861,-201.706984,0.00019529,2]
[360193613,1746614827887,-752.37,0.00019529,2]
[360193614,1746614827916,-752.37,0.00019529,2]
[360193615,1746614827942,-151.0,0.00019529,2]
[360193616,1746614827968,-151.0,0.00019529,2]
[360193617,1746614827996,-151.0,0.00019529,2]
[360193618,1746614828022,-450.0,0.00019529,2]
[360193619,1746614828048,-450.0,0.00019529,2]
[360193620,1746614828075,-205.349779,0.00019529,2]
[360193621,1746614828100,-824.65,0.00019529,2]
[360193622,1746614828127,-805.85,0.00019529,2]
[360193623,1746614828152,-906.9,0.00019529,2]
[360193624,1746614828177,-157.305426,0.00019529,2]
[360193625,1746614828206,-157.305426,0.00019529,2]
[360193626,1746614828232,-157.305426,0.00019529,2]
[360193627,1746614828258,-450.0,0.00019529,2]
[360193628,1746614828284,-450.0,0.00019529,2]
[360193629,1746614828310,-157.305426,0.00019529,2]
[360193630,1746614828336,-157.305426,0.00019529,2]
[360193631,1746614828361,-157.305432,0.00019529,2]
[360193632,1746614828386,-450.0,0.00019529,2]
[360193633,1746614828412,-450.0,0.00019529,2]
[360193634,1746614828438,-450.0,0.00019529,2]
[360193635,1746614828463,-748.09,0.00019529,2]
[360193636,1746614828488,-450.0,0.00019529,2]
[360193637,1746614828514,-450.0,0.00019529,2]
[360193638,1746614828539,-450.0,0.00019529,2]
[360193639,1746614828565,-450.0,0.00019529,2]
[360193640,1746614828590,-199.011719,0.00019529,2]
[360193641,1746614828616,-199.011719,0.00019529,2]
[360193642,1746614828641,-199.011719,0.00019529,2]
[360193643,1746614828666,-199.011719,0.00019529,2]
[360193644,1746614828692,-450.0,0.00019529,2]
[360193645,1746614828719,-450.0,0.00019529,2]
[360193646,1746614828746,-199.011719,0.00019529,2]
[360193647,1746614828773,-199.011719,0.00019529,2]
[360193648,1746614828802,-199.011719,0.00019529,2]
[360193649,1746614828831,-199.011719,0.00019529,2]
[360193650,1746614828860,-450.0,0.00019529,2]
[360193651,1746614828889,-450.0,0.00019529,2]
[360193652,1746614828919,-450.0,0.00019529,2]
[360193653,1746614828946,-450.0,0.00019529,2]
[360193654,1746614828972,-450.0,0.00019529,2]
[360193655,1746614828999,-469.39,0.00019529,2]
[360193656,1746614829026,-151.0,0.00019529,2]
[360193657,1746614829055,-151.0,0.00019529,2]
[360193658,1746614829083,-151.0,0.00019529,2]
[360193659,1746614829109,-151.0,0.00019529,2]
[360193660,1746614829139,-450.0,0.00019529,2]
[360193661,1746614829167,-171.62333364,0.00019529,2]
[360193662,1746614829192,-151.0,0.0001953,2]
[360193663,1746614829218,-151.0,0.0001953,2]
[360193664,1746614829245,-151.0,0.0001953,2]
[360193665,1746614829271,-151.0,0.0001953,2]
[360193666,1746614829296,-151.0,0.0001953,2]
[360193667,1746614829322,-151.0,0.0001953,2]
[360193668,1746614829349,-151.0,0.0001953,2]
[360193669,1746614829375,-151.0,0.0001953,2]
[360193670,1746614829401,-229.545638,0.0001953,2]
[360193671,1746614829426,-229.545638,0.0001953,2]
[360193672,1746614829454,-229.545638,0.0001953,2]
[360193673,1746614829480,-229.545638,0.0001953,2]
[360193674,1746614829507,-229.545638,0.0001953,2]
[360193675,1746614829534,-229.545638,0.0001953,2]
[360193676,1746614829560,-229.545638,0.0001953,2]
[360193677,1746614829587,-229.545638,0.0001953,2]
[360193678,1746614829613,-151.0,0.0001953,2]
[360193679,1746614829640,-256.565623,0.0001953,2]
[360193680,1746614829666,-266.980785,0.0001953,2]
[360193681,1746614829691,-266.980785,0.0001953,2]
[360193682,1746614829717,-266.980785,0.0001953,2]
[360193683,1746614829743,-266.980785,0.0001953,2]
[360193684,1746614829769,-266.980785,0.0001953,2]
[360193685,1746614829796,-266.980785,0.0001953,2]
[360193686,1746614829825,-266.980785,0.0001953,2]
[360193687,1746614829851,-266.980785,0.0001953,2]
[360193688,1746614829878,-282.655956,0.0001953,2]
[360193689,1746614829904,-282.655956,0.0001953,2]
[360193690,1746614829930,-282.655956,0.0001953,2]
[360193691,1746614829957,-282.655956,0.0001953,2]
[360193692,1746614829982,-282.655956,0.0001953,2]
[360193693,1746614830007,-282.655956,0.0001953,2]
[360193694,1746614830033,-282.655956,0.0001953,2]
[360193695,1746614830058,-282.655956,0.0001953,2]
[360193696,1746614830084,-1667.709225,0.0001953,2]
[360193697,1746614830110,-1667.70923207,0.0001953,2]
[360193698,1746614830137,-9613.93672587,0.00019531,2]
[360193699,1746614830163,-152.165625,0.00019531,2]
[360193700,1746614830190,-282.655956,0.00019531,2]
[360193701,1746614830216,-282.655959,0.00019531,2]
[360193702,1746614830244,-199.011719,0.00019531,2]
[360193703,1746614830270,-199.011716,0.00019531,2]
[360193704,1746614830295,-151.0,0.00019531,2]
[360193705,1746614830320,-150.0,0.00019542,2]
[360193706,1746614830346,-500.0,0.00019542,2]
[360193707,1746614830371,-151.0,0.00019553,2]
[360193708,1746614830398,-151.0,0.00019553,2]
[360193709,1746614830425,-151.0,0.00019554,2]
[360193710,1746614830452,-151.0,0.00019554,2]
[360193711,1746614830478,-563.56,0.00019566,2]
[360193712,1746614830504,-1291.49,0.00019566,2]
[360193713,1746614830531,-190.28097216,0.00019566,2]
[360193714,1746614830558,-450.0,0.00019566,2]
[360193715,1746614830584,-504.81,0.00019566,2]
[360193716,1746614830611,-70822.78,0.00019566,2]
[360193717,1746614830638,-450.0,0.00019566,2]
[360193718,1746614830664,-1285.39,0.00019566,2]
[360193719,1746614830690,-539.18939347,0.00019566,2]
[360193720,1746614830716,-450.0,0.00019566,2]
[360193721,1746614830742,-470.09,0.00019566,2]
[360193722,1746614830769,-2795.86,0.00019566,2]
[360193723,1746614830795,-450.0,0.00019566,2]
[360193724,1746614830824,-890.92,0.00019566,2]
[360193725,1746614830850,-587.19,0.00019566,2]
[360193726,1746614830877,-1695.43,0.00019566,2]
[360193727,1746614830902,-450.0,0.00019566,2]
[360193728,1746614830928,-518.51,0.00019566,2]
[360193729,1746614830954,-450.0,0.00019566,2]
[360193730,1746614830980,-526.61,0.00019566,2]
[360193731,1746614831006,-40154.3242741,0.00019567,2]
[360193732,1746614831031,-2760.9230076,0.00019567,2]
[360193733,1746614831056,-53037.7913333,0.00019567,2]
[360193734,1746614831081,-5519.55,0.00019567,2]
[360193735,1746614831107,-150.0,0.0001957,2]
[360193736,1746614831300,-500.0,0.0001957,2]
[360193737,1746614831326,-312.21810704,0.00019573,2]
[360193738,1746614831352,-500.0,0.00019573,2]
[360193739,1746614831377,-165.26145551,0.00019573,2]
[360193740,1746614831402,-500.0,0.00019573,2]
[360193741,1746614831427,-500.0,0.00019573,2]
[360193742,1746614831453,-500.0,0.00019573,2]
[360193743,1746614831478,-35953.272241,0.00019573,2]
[360193744,1746614831504,-47512.0081333,0.00019573,2]
[360193745,1746614831529,-6411.73,0.00019573,2]
[360193746,1746614831555,-450.0,0.00019574,2]
[360193747,1746614831581,-507.91,0.00019574,2]
[360193748,1746614831607,-450.0,0.00019574,2]
[360193749,1746614831635,-1357.82,0.00019574,2]
[360193750,1746614831661,-450.0,0.00019574,2]
[360193751,1746614831686,-450.0,0.00019574,2]
[360193752,1746614831714,-677.35,0.00019574,2]
[360193753,1746614831741,-450.0,0.00019574,2]
[360193754,1746614831769,-450.0,0.00019574,2]
[360193755,1746614831799,-1416.68,0.00019574,2]
[360193756,1746614831828,-450.0,0.00019574,2]
[360193757,1746614831856,-1453.62,0.00019574,2]
[360193758,1746614831884,-450.0,0.00019574,2]
[360193759,1746614831911,-602.84,0.00019574,2]
[360193760,1746614831940,-450.0,0.00019574,2]
[360193761,1746614831967,-560.16,0.00019574,2]
[360193762,1746614831995,-665.4,0.00019574,2]
[360193763,1746614832024,-1856.77,0.00019574,2]
[360193764,1746614832052,-247.92988346,0.00019574,2]
[360193765,1746614832080,-450.0,0.00019574,2]
[360193766,1746614832106,-450.0,0.00019574,2]
[360193767,1746614832133,-450.0,0.00019574,2]
[360193768,1746614832161,-801.16,0.00019574,2]
[360193769,1746614832187,-2473.2741145,0.00019574,2]
[360193770,1746614832215,-590.12,0.00019574,2]
[360193771,1746614832243,-616.27,0.00019574,2]
[360193772,1746614832272,-1318.56,0.00019574,2]
[360193773,1746614832299,-545.29,0.00019574,2]
[360193774,1746614832328,-450.0,0.00019574,2]
[360193775,1746614832358,-520.25,0.00019574,2]
[360193776,1746614832387,-706.91,0.00019574,2]
[360193777,1746614832416,-995.8,0.00019574,2]
[360193778,1746614832444,-2009.91,0.00019574,2]
[360193779,1746614832472,-450.0,0.00019574,2]
[360193780,1746614832498,-470.09,0.00019574,2]
[360193781,1746614832524,-450.0,0.00019574,2]
[360193782,1746614832550,-522.38,0.00019574,2]
[360193783,1746614832577,-540.25,0.00019574,2]
[360193784,1746614832604,-862.74,0.00019574,2]
[360193785,1746614832632,-500.29,0.00019574,2]
[360193786,1746614832659,-890.92,0.00019574,2]
[360193787,1746614832688,-586.43,0.00019574,2]
[360193788,1746614832716,-503.33,0.00019574,2]
[360193789,1746614832742,-1826.21,0.00019574,2]
[360193790,1746614832770,-1695.43,0.00019574,2]
[360193791,1746614832796,-518.51,0.00019574,2]
[360193792,1746614832824,-450.0,0.00019574,2]
[360193793,1746614832850,-450.0,0.00019574,2]
[360193794,1746614832877,-450.0,0.00019574,2]
[360193795,1746614832904,-450.0,0.00019574,2]
[360193796,1746614832930,-544.16,0.00019574,2]
[360193797,1746614832958,-1391.75,0.00019574,2]
[360193798,1746614832987,-526.61,0.00019574,2]
[360193799,1746614833014,-450.0,0.00019575,2]
[360193800,1746614833042,-475.88,0.00019575,2]
[360193801,1746614833070,-1103.82,0.00019575,2]
[360193802,1746614833098,-512.42,0.00019575,2]
[360193803,1746614833126,-745.46,0.00019575,2]
[360193804,1746614833155,-510.55,0.00019575,2]
[360193805,1746614833182,-450.0,0.00019575,2]
[360193806,1746614833209,-450.0,0.00019575,2]
[360193807,1746614833236,-450.0,0.00019575,2]
[360193808,1746614833265,-450.0,0.00019575,2]
[360193809,1746614833292,-450.0,0.00019575,2]
[360193810,1746614833320,-500.0,0.00019575,2]
[360193811,1746614833347,-450.0,0.00019575,2]
[360193812,1746614833375,-525.82,0.00019575,2]
[360193813,1746614833402,-1152.2,0.00019575,2]
[360193814,1746614833428,-450.0,0.00019575,2]
[360193815,1746614833454,-559.23,0.00019575,2]
[360193816,1746614833481,-450.0,0.00019575,2]
[360193817,1746614833506,-560.84,0.00019575,2]
[360193818,1746614833532,-450.0,0.00019575,2]
[360193819,1746614833559,-454.51,0.00019575,2]
[360193820,1746614833584,-450.0,0.00019575,2]
[360193821,1746614833610,-717.55,0.00019575,2]
[360193822,1746614833636,-450.0,0.00019575,2]
[360193823,1746614833663,-563.56,0.00019575,2]
[360193824,1746614833689,-450.0,0.00019575,2]
[360193825,1746614833716,-450.0,0.00019575,2]
[360193826,1746614833742,-450.0,0.00019575,2]
[360193827,1746614833770,-545.91,0.00019575,2]
[360193828,1746614833798,-1427.77,0.00019575,2]
[360193829,1746614833827,-1291.49,0.00019575,2]
[360193830,1746614833854,-400.96461093,0.00019575,2]
[360193831,1746614833881,-1743.72,0.00019575,2]
[360193832,1746614833912,-450.0,0.00019575,2]
[360193833,1746614833941,-1019.86,0.00019575,2]
[360193834,1746614833971,-450.0,0.00019575,2]
[360193835,1746614834001,-1885.11,0.00019575,2]
[360193836,1746614834028,-805.8,0.00019575,2]
[360193837,1746614834055,-450.0,0.00019575,2]
[360193838,1746614834082,-450.0,0.00019575,2]
[360193839,1746614834108,-1750.11,0.00019575,2]
[360193840,1746614834134,-450.0,0.00019575,2]
[360193841,1746614834159,-450.0,0.00019575,2]
[360193842,1746614834186,-450.0,0.00019575,2]
[360193843,1746614834212,-3127.48,0.00019575,2]
[360193844,1746614834240,-450.0,0.00019575,2]
[360193845,1746614834268,-683.57,0.00019575,2]
[360193846,1746614834297,-504.81,0.00019575,2]
[360193847,1746614834324,-450.0,0.00019575,2]
[360193848,1746614834353,-34732.98,0.00019575,2]
[360193849,1746614834383,-70822.78,0.00019575,2]
[360193850,1746614834412,-1274.51,0.00019575,2]
[360193851,1746614834439,-450.0,0.00019575,2]
[360193852,1746614834465,-450.0,0.00019575,2]
[360193853,1746614834491,-450.0,0.00019575,2]
[360193854,1746614834518,-450.0,0.00019575,2]
[360193855,1746614834545,-1140.0,0.00019575,2]
[360193856,1746614834572,-450.0,0.00019575,2]
[360193857,1746614834599,-575.04,0.00019575,2]
[360193858,1746614834625,-450.0,0.00019575,2]
[360193859,1746614834651,-9634.36,0.00019575,2]
[360193860,1746614834678,-804.49,0.00019575,2]
[360193861,1746614834703,-866.48,0.00019575,2]
[360193862,1746614834729,-825.77,0.00019575,2]
[360193863,1746614834755,-756.52,0.00019575,2]
[360193864,1746614834781,-450.0,0.00019575,2]
[360193865,1746614834806,-15626.93,0.00019575,2]
[360193866,1746614834834,-450.0,0.00019575,2]
[360193867,1746614834861,-450.0,0.00019575,2]
[360193868,1746614834888,-7498.86,0.00019575,2]
[360193869,1746614834918,-1285.39,0.00019575,2]
[360193870,1746614834944,-450.0,0.00019575,2]
[360193871,1746614834970,-450.0,0.00019575,2]
[360193872,1746614834997,-1093.57,0.00019575,2]
[360193873,1746614835022,-814.49,0.00019575,2]
[360193874,1746614835049,-450.0,0.00019575,2]
[360193875,1746614835076,-653.21,0.00019575,2]
[360193876,1746614835103,-2795.86,0.00019575,2]
[360193877,1746614835128,-450.0,0.00019575,2]
[360193878,1746614835154,-1214.17,0.00019575,2]
[360193879,1746614835182,-587.19,0.00019575,2]
[360193880,1746614835209,-450.0,0.00019575,2]
[360193881,1746614835237,-1264.98,0.00019575,2]
[360193882,1746614835266,-450.0,0.00019575,2]
[360193883,1746614835293,-450.0,0.00019575,2]
[360193884,1746614835491,-706.13,0.00019575,2]
[360193885,1746614835518,-450.0,0.00019575,2]
[360193886,1746614835545,-552.32,0.00019575,2]
[360193887,1746614835571,-769.64,0.00019575,2]
[360193888,1746614835596,-1374.23,0.00019575,2]
[360193889,1746614835621,-199.99866,0.00019576,2]
[360193890,1746614835647,-229.545638,0.00019576,2]
[360193891,1746614835672,-229.54563,0.00019576,2]
[360193892,1746614835697,-266.980785,0.00019576,2]
[360193893,1746614835722,-266.980781,0.00019576,2]
[360193894,1746614835748,-752.37,0.00019576,2]
[360193895,1746614835775,-450.0,0.00019576,2]
[360193896,1746614835802,-450.0,0.00019576,2]
[360193897,1746614835830,-450.0,0.00019576,2]
[360193898,1746614835857,-450.0,0.00019576,2]
[360193899,1746614835886,-450.0,0.00019576,2]
[360193900,1746614835913,-450.0,0.00019576,2]
[360193901,1746614835940,-450.0,0.00019576,2]
[360193902,1746614835966,-450.0,0.00019576,2]
[360193903,1746614835991,-450.0,0.00019576,2]
[360193904,1746614836017,-3930.4564932,0.00019576,2]
[360193905,1746614836043,-740.7258681,0.00019576,2]
[360193906,1746614836068,-230.8602796,0.00019576,2]
[360193907,1746614836096,-824.65,0.00019577,2]
[360193908,1746614836123,-805.85,0.00019577,2]
[360193909,1746614836150,-906.9,0.00019577,2]
[360193910,1746614836176,-450.0,0.00019577,2]
[360193911,1746614836203,-748.09,0.00019577,2]
[360193912,1746614836230,-450.0,0.00019577,2]
[360193913,1746614836259,-469.39,0.00019577,2]
[360193914,1746614836287,-529.01586174,0.00019577,2]
[360193915,1746614836315,-507.91,0.00019578,2]
[360193916,1746614836344,-450.0,0.00019578,2]
[360193917,1746614836371,-450.0,0.00019578,2]
[360193918,1746614836398,-616.27,0.00019578,2]
[360193919,1746614836424,-706.91,0.00019578,2]
[360193920,1746614836451,-862.74,0.00019578,2]
[360193921,1746614836478,-450.0,0.00019579,2]
[360193922,1746614836504,-450.0,0.00019579,2]
[360193923,1746614836533,-1357.82,0.00019579,2]
[360193924,1746614836561,-450.0,0.00019579,2]
[360193925,1746614836590,-677.35,0.00019579,2]
[360193926,1746614836619,-450.0,0.00019579,2]
[360193927,1746614836646,-450.0,0.00019579,2]
[360193928,1746614836676,-1416.68,0.00019579,2]
[360193929,1746614836704,-450.0,0.00019579,2]
[360193930,1746614836733,-1453.62,0.00019579,2]
[360193931,1746614836762,-602.84,0.00019579,2]
[360193932,1746614836790,-450.0,0.00019579,2]
[360193933,1746614836817,-560.16,0.00019579,2]
[360193934,1746614836848,-665.4,0.00019579,2]
[360193935,1746614836876,-1856.77,0.00019579,2]
[360193936,1746614836902,-450.0,0.00019579,2]
[360193937,1746614836929,-450.0,0.00019579,2]
[360193938,1746614836958,-450.0,0.00019579,2]
[360193939,1746614836984,-801.16,0.00019579,2]
[360193940,1746614837010,-590.12,0.00019579,2]
[360193941,1746614837036,-1318.56,0.00019579,2]
[360193942,1746614837062,-545.29,0.00019579,2]
[360193943,1746614837087,-450.0,0.00019579,2]
[360193944,1746614837113,-520.25,0.00019579,2]
[360193945,1746614837138,-995.8,0.00019579,2]
[360193946,1746614837164,-2009.91,0.00019579,2]
[360193947,1746614837189,-450.0,0.00019579,2]
[360193948,1746614837215,-470.09,0.00019579,2]
[360193949,1746614837241,-450.0,0.00019579,2]
[360193950,1746614837267,-522.38,0.00019579,2]
[360193951,1746614837293,-540.25,0.00019579,2]
[360193952,1746614837320,-500.29,0.00019579,2]
[360193953,1746614837347,-890.92,0.00019579,2]
[360193954,1746614837374,-586.43,0.00019579,2]
[360193955,1746614837400,-503.33,0.00019579,2]
[360193956,1746614837427,-1826.21,0.00019579,2]
[360193957,1746614837454,-1695.43,0.00019579,2]
[360193958,1746614837479,-518.51,0.00019579,2]
[360193959,1746614837506,-450.0,0.00019579,2]
[360193960,1746614837533,-450.0,0.00019579,2]
[360193961,1746614837559,-450.0,0.00019579,2]
[360193962,1746614837585,-450.0,0.00019579,2]
[360193963,1746614837611,-544.16,0.00019579,2]
[360193964,1746614837637,-1391.75,0.00019579,2]
[360193965,1746614837663,-526.61,0.00019579,2]
[360193966,1746614837688,-450.0,0.0001958,2]
[360193967,1746614837713,-475.88,0.0001958,2]
[360193968,1746614837738,-1103.82,0.0001958,2]
[360193969,1746614837764,-512.42,0.0001958,2]
[360193970,1746614837790,-745.46,0.0001958,2]
[360193971,1746614837816,-510.55,0.0001958,2]
[360193972,1746614837846,-450.0,0.0001958,2]
[360193973,1746614837871,-450.0,0.0001958,2]
[360193974,1746614837898,-450.0,0.0001958,2]
[360193975,1746614837928,-450.0,0.0001958,2]
[360193976,1746614837957,-450.0,0.0001958,2]
[360193977,1746614837982,-500.0,0.0001958,2]
[360193978,1746614838008,-450.0,0.0001958,2]
[360193979,1746614838033,-525.82,0.0001958,2]
[360193980,1746614838058,-1152.2,0.0001958,2]
[360193981,1746614838083,-450.0,0.0001958,2]
[360193982,1746614838107,-450.0,0.0001958,2]
[360193983,1746614838133,-559.23,0.0001958,2]
[360193984,1746614838159,-450.0,0.0001958,2]
[360193985,1746614838185,-560.84,0.0001958,2]
[360193986,1746614838212,-450.0,0.0001958,2]
[360193987,1746614838240,-454.51,0.0001958,2]
[360193988,1746614838267,-450.0,0.0001958,2]
[360193989,1746614838293,-717.55,0.0001958,2]
[360193990,1746614838320,-450.0,0.0001958,2]
[360193991,1746614838347,-563.56,0.0001958,2]
[360193992,1746614838372,-534.08482237,0.0001958,2]
[360193993,1746614838399,-450.0,0.0001958,2]
[360193994,1746614838424,-362.36809285,0.0001958,2]
[360193995,1746614838452,-545.91,0.0001958,2]
[360193996,1746614838477,-1427.77,0.0001958,2]
[360193997,1746614838503,-1291.49,0.0001958,2]
[360193998,1746614838530,-1743.72,0.0001958,2]
[360193999,1746614838556,-450.0,0.0001958,2]
[360194000,1746614838583,-1019.86,0.0001958,2]
[360194001,1746614838609,-450.0,0.0001958,2]
[360194002,1746614838636,-1885.11,0.0001958,2]
[360194003,1746614838663,-805.8,0.0001958,2]
[360194004,1746614838689,-450.0,0.0001958,2]
[360194005,1746614838716,-450.0,0.0001958,2]
[360194006,1746614838744,-1750.11,0.0001958,2]
[360194007,1746614838773,-450.0,0.0001958,2]
[360194008,1746614838800,-450.0,0.0001958,2]
[360194009,1746614838829,-450.0,0.0001958,2]
[360194010,1746614838856,-3127.48,0.0001958,2]
[360194011,1746614838884,-450.0,0.0001958,2]
[360194012,1746614838913,-683.57,0.0001958,2]
[360194013,1746614838941,-504.81,0.0001958,2]
[360194014,1746614838969,-450.0,0.0001958,2]
[360194015,1746614838998,-34732.98,0.0001958,2]
[360194016,1746614839027,-70822.78,0.0001958,2]
[360194017,1746614839054,-1274.51,0.0001958,2]
[360194018,1746614839081,-450.0,0.0001958,2]
[360194019,1746614839109,-450.0,0.0001958,2]
[360194020,1746614839137,-450.0,0.0001958,2]
[360194021,1746614839164,-450.0,0.0001958,2]
[360194022,1746614839193,-1140.0,0.0001958,2]
[360194023,1746614839222,-450.0,0.0001958,2]
[360194024,1746614839249,-575.04,0.0001958,2]
[360194025,1746614839277,-450.0,0.0001958,2]
[360194026,1746614839304,-9634.36,0.0001958,2]
[360194027,1746614839331,-804.49,0.0001958,2]
[360194028,1746614839358,-866.48,0.0001958,2]
[360194029,1746614839385,-825.77,0.0001958,2]
[360194030,1746614839573,-756.52,0.0001958,2]
[360194031,1746614839600,-450.0,0.0001958,2]
[360194032,1746614839626,-15626.93,0.0001958,2]
[360194033,1746614839651,-576.35302023,0.0001958,2]
[360194034,1746614839677,-450.0,0.0001958,2]
[360194035,1746614839705,-7498.86,0.0001958,2]
[360194036,1746614839732,-1285.39,0.0001958,2]
[360194037,1746614839759,-450.0,0.0001958,2]
[360194038,1746614839786,-450.0,0.0001958,2]
[360194039,1746614839813,-1093.57,0.0001958,2]
[360194040,1746614839841,-814.49,0.0001958,2]
[360194041,1746614839868,-450.0,0.0001958,2]
[360194042,1746614839895,-653.21,0.0001958,2]
[360194043,1746614839925,-2795.86,0.0001958,2]
[360194044,1746614839950,-450.0,0.0001958,2]
[360194045,1746614839975,-1214.17,0.0001958,2]
[360194046,1746614840002,-587.19,0.0001958,2]
[360194047,1746614840028,-450.0,0.0001958,2]
[360194048,1746614840054,-1264.98,0.0001958,2]
[360194049,1746614840080,-450.0,0.0001958,2]
[360194050,1746614840105,-450.0,0.0001958,2]
[360194051,1746614840130,-706.13,0.0001958,2]
[360194052,1746614840156,-450.0,0.0001958,2]
[360194053,1746614840182,-552.32,0.0001958,2]
[360194054,1746614840208,-769.64,0.0001958,2]
[360194055,1746614840234,-1374.23,0.0001958,2]
[360194056,1746614840260,-752.37,0.00019581,2]
[360194057,1746614840286,-450.0,0.00019581,2]
[360194058,1746614840312,-824.65,0.00019581,2]
[360194059,1746614840339,-805.85,0.00019581,2]
[360194060,1746614840366,-906.9,0.00019581,2]
[360194061,1746614840393,-450.0,0.00019581,2]
[360194062,1746614840421,-450.0,0.00019581,2]
[360194063,1746614840450,-450.0,0.00019581,2]
[360194064,1746614840477,-748.09,0.00019581,2]
[360194065,1746614840508,-450.0,0.00019581,2]
[360194066,1746614840535,-450.0,0.00019581,2]
[360194067,1746614840561,-450.0,0.00019581,2]
[360194068,1746614840588,-450.0,0.00019581,2]
[360194069,1746614840614,-450.0,0.00019581,2]
[360194070,1746614840641,-450.0,0.00019581,2]
[360194071,1746614840669,-469.39,0.00019581,2]
[360194072,1746614840697,-450.0,0.00019581,2]
[360194073,1746614840725,-507.91,0.00019581,2]
[360194074,1746614840754,-375.12,0.00019581,2]
[360194075,1746614840784,-1357.82,0.00019581,2]
[360194076,1746614840812,-450.0,0.00019581,2]
[360194077,1746614840843,-450.0,0.00019581,2]
[360194078,1746614840879,-450.0,0.00019581,2]
[360194079,1746614840917,-450.0,0.00019581,2]
[360194080,1746614840948,-1416.68,0.00019581,2]
[360194081,1746614840977,-450.0,0.00019581,2]
[360194082,1746614841005,-450.0,0.00019581,2]
[360194083,1746614841033,-602.84,0.00019581,2]
[360194084,1746614841060,-450.0,0.00019581,2]
[360194085,1746614841088,-665.4,0.00019581,2]
[360194086,1746614841116,-450.0,0.00019581,2]
[360194087,1746614841144,-450.0,0.00019581,2]
[360194088,1746614841172,-590.12,0.00019581,2]
[360194089,1746614841199,-616.27,0.00019581,2]
[360194090,1746614841231,-1318.56,0.00019581,2]
[360194091,1746614841262,-545.29,0.00019581,2]
[360194092,1746614841295,-520.25,0.00019581,2]
[360194093,1746614841325,-995.8,0.00019581,2]
[360194094,1746614841354,-706.91,0.00019581,2]
[360194095,1746614841383,-450.0,0.00019581,2]
[360194096,1746614841411,-470.09,0.00019581,2]